bitfinex-derivatives/quotes_SOLF0:USTF0_20250413
["timestamp","ask_amount","ask_price","bid_price","bid_amount"]
[1744562761415,13.9586,129.45,129.4,0.04947489]
[1744562761609,6.2304,129.45,129.4,0.04947489]
[1744562761816,4.1772,129.45,129.44,7.7285]
[1744562762219,2.018,129.48,129.43,0.05188237]
[1744562762720,2.018,129.48,129.44,30.32]
[1744562763117,2.018,129.48,129.46,7.7267]
[1744562763312,2.018,129.48,129.44,30.32]
[1744562763511,30.32,129.51,129.46,0.05061228]
[1744562764113,7.7241,129.52,129.49,7.7254]
[1744562764313,2.0921,129.53,129.49,7.7254]
[1744562764614,2.0921,129.53,129.49,7.78073571]
[1744562764813,34.4719,129.54,129.5,7.7248]
[1744562765017,4.1519,129.54,129.5,7.7248]
[1744562765215,4.1519,129.54,129.49,0.05533571]
[1744562765418,4.1519,129.54,129.52,7.7236]
[1744562765610,4.1519,129.54,129.5,30.3]
[1744562765816,4.1519,129.54,129.52,0.0488064]
[1744562765817,7.7232,129.53,129.52,0.0488064]
[1744562766023,1.994,129.53,129.5,30.3]
[1744562767123,2.04928764,129.53,129.5,30.35720076]
[1744562767423,2.04928764,129.53,129.5,38.08160076]
[1744562767620,2.04928764,129.53,129.5,30.35720076]
[1744562768123,9.77268764,129.53,129.5,30.35720076]
[1744562768326,2.04928764,129.53,129.5,30.35720076]
[1744562769120,9.77268764,129.53,129.5,30.35720076]
[1744562769323,2.04928764,129.53,129.5,30.35720076]
[1744562769527,0.05528764,129.53,129.5,30.35720076]
[1744562770222,0.05528764,129.53,129.5,38.08170076]
[1744562770422,0.05528764,129.53,129.5,30.35720076]
[1744562773831,7.7238,129.52,129.5,30.35720076]
[1744562774220,0.05528764,129.53,129.5,0.05720076]
[1744562774423,7.7266,129.48,129.44,38.0082]
[1744562774629,25.6838474,129.51,129.44,30.28]
[1744562774830,7.727,129.47,129.44,30.28]
[1744562775230,32.3072,129.53,129.44,30.28]
[1744562775530,0.05463119,129.5,129.47,0.05643813]
[1744562776832,0.05463119,129.5,129.44,30.28]
[1744562777135,16.09362063,129.5,129.44,30.28]
[1744562777632,7.7272,129.47,129.44,30.28]
[1744562777929,16.03898944,129.5,129.44,30.28]
[1744562778131,0.05408886,129.47,129.44,30.33409644]
[1744562778728,2.21308886,129.47,129.44,30.33409644]
[1744562778935,16.03898944,129.46,129.41,642.68]
[1744562779123,18.11818944,129.46,129.41,642.68]
[1744562779328,18.11818944,129.46,129.41,30.28]
[1744562780129,18.11818944,129.46,129.42,0.05517581]
[1744562780432,7.7294,129.43,129.42,0.05517581]
[1744562780629,2.159,129.47,129.42,0.05517581]
[1744562780833,0.05578309,129.44,129.42,0.05517581]
[1744562781533,0.05578309,129.44,129.43,7.7288]
[1744562787643,55.93946363,129.56,129.42,25.71463944]
[1744562787842,1.9687,129.54,129.42,25.65946363]
[1744562788042,4.1293,129.53,129.42,25.65946363]
[1744562788342,7.7253,129.5,129.46,7.7269]
[1744562788543,7.7253,129.5,129.46,30.28]
[1744562788737,0.05391993,129.49,129.47,0.04889864]
[1744562788937,0.05391993,129.49,129.48,7.7261]
[1744562789443,7.7222,129.55,129.51,7.7238]
[1744562789645,4.1293,129.56,129.51,37.9838]
[1744562790044,7.7228,129.54,129.51,37.9838]
[1744562790444,7.77985225,129.54,129.51,38.0428767]
[1744562791042,0.05705225,129.54,129.51,30.3190767]
[1744562791346,0.05705225,129.54,129.51,0.0590767]
[1744562791745,7.7237,129.53,129.51,0.0590767]
[1744562792450,7.7237,129.53,129.51,7.7833767]
[1744562792642,7.7237,129.53,129.51,0.0590767]
[1744562793049,7.77985225,129.54,129.51,0.0590767]
[1744562793649,7.77985225,129.54,129.51,7.7830767]
[1744562794849,0.05705225,129.54,129.52,7.7235]
[1744562795051,0.05705225,129.54,129.51,30.3190767]
[1744562795451,0.05705225,129.54,129.53,7.7231]
[1744562796352,0.05705225,129.54,129.51,30.3190767]
[1744562797054,0.05705225,129.54,129.51,0.0590767]
[1744562797545,7.7237,129.52,129.51,0.0590767]
[1744562798053,0.05705225,129.54,129.48,30.26]
[1744562798255,7.724,129.52,129.49,7.7254]
[1744562798755,4.1293,129.56,129.49,7.7254]
[1744562799052,0.05277579,129.54,129.51,0.05803228]
[1744562799753,7.7237,129.52,129.51,0.05803228]
[1744562800860,7.7255,129.49,129.48,30.26]
[1744562801658,55.91946363,129.51,129.45,30.26]
[1744562801857,2.0335,129.48,129.43,30.26]
[1744562802057,9.7596,129.48,129.47,0.05367382]
[1744562802256,2.0335,129.48,129.43,30.26]
[1744562803058,0.05303222,129.49,129.43,30.26]
[1744562803456,7.7262,129.48,129.45,7.78653453]
[1744562804459,7.7262,129.48,129.46,7.7273]
[1744562804859,7.7262,129.48,129.45,0.05893453]
[1744562805058,7.7262,129.48,129.45,7.78653453]
[1744562806761,7.7268,129.47,129.45,7.78653453]
[1744562807160,7.7268,129.47,129.45,0.05893453]
[1744562807561,7.7273,129.46,129.45,0.05893453]
[1744562808761,7.727,129.47,129.45,0.05893453]
[1744562809066,0.05303222,129.49,129.45,0.05893453]
[1744562809668,7.7266,129.48,129.45,7.78643453]
[1744562809969,0.05303222,129.49,129.46,30.26]
[1744562810167,0.05303222,129.49,129.47,7.7264]
[1744562810467,0.05303222,129.49,129.46,30.26]
[1744562811162,7.7265,129.48,129.46,30.26]
[1744562811366,0.05303222,129.49,129.46,30.26]
[1744562813068,7.77883222,129.49,129.46,37.9869]
[1744562813868,7.77883222,129.49,129.47,7.7266]
[1744562815271,7.77883222,129.49,129.46,37.987]
[1744562817975,7.7264,129.48,129.46,30.26]
[1744562818372,0.05303222,129.49,129.46,30.26]
[1744562818567,0.05303222,129.49,129.45,0.05893453]
[1744562820175,7.7267,129.47,129.45,0.05893453]
[1744562820981,7.7273,129.46,129.45,0.05893453]
[1744562827083,7.7269,129.47,129.45,0.05893453]
[1744562827287,0.05303222,129.49,129.45,0.05893453]
[1744562827478,7.77883222,129.49,129.46,37.9669]
[1744562829578,0.05303222,129.49,129.46,30.24]
[1744562829785,0.05303222,129.49,129.46,46.27447147]
[1744562830485,0.05303222,129.49,129.48,7.7261]
[1744562831085,0.05303222,129.49,129.47,7.7264]
[1744562832277,0.05303222,129.49,129.48,7.7261]
[1744562833588,0.05303222,129.49,129.48,23.76057147]
[1744562833883,4.0824,129.56,129.51,7.7241]
[1744562834082,4.0824,129.56,129.51,30.24]
[1744562834288,7.7216,129.56,129.51,30.24]
[1744562834487,4.1884,129.59,129.52,16.03447147]
[1744562834987,7.77483556,129.57,129.54,7.7739902]
[1744562835287,7.77483556,129.57,129.54,38.0139902]
[1744562837090,0.05353556,129.57,129.54,46.32636167]
[1744562837591,0.05353556,129.57,129.54,30.2918902]
[1744562838097,0.05353556,129.57,129.56,7.7213]
[1744562838592,0.05353556,129.57,129.54,30.2918902]
[1744562838798,0.05353556,129.57,129.54,46.32636167]
[1744562839594,0.05353556,129.57,129.55,7.7215]
[1744562839793,0.05353556,129.57,129.54,46.32636167]
[1744562840796,0.05353556,129.57,129.55,7.7217]
[1744562841493,7.77433556,129.57,129.54,38.0140902]
[1744562841993,7.7214,129.56,129.54,30.2918902]
[1744562842799,7.77453556,129.57,129.54,38.0142902]
[1744562842993,0.05353556,129.57,129.54,30.2918902]
[1744562844698,7.7219,129.55,129.54,30.2918902]
[1744562845595,7.7234,129.53,129.51,30.22]
[1744562845795,16.03447147,129.55,129.51,30.22]
[1744562845996,16.03447147,129.55,129.47,30.22]
[1744562845997,46.25447147,129.55,129.47,30.22]
[1744562846702,7.7233,129.53,129.49,7.7251]
[1744562846902,0.05905086,129.52,129.5,0.05501102]
[1744562847500,7.78305086,129.52,129.5,0.05501102]
[1744562848509,7.7243,129.51,129.5,0.05501102]
[1744562851302,7.7261,129.48,129.47,30.22]
[1744562851609,2.0731,129.51,129.47,30.22]
[1744562852408,9.7979,129.51,129.48,7.7261]
[1744562852704,0.05889673,129.5,129.48,0.05839018]
[1744562853507,7.7255,129.49,129.48,0.05839018]
[1744562854104,7.7261,129.48,129.47,30.22]
[1744562854305,0.05889673,129.5,129.44,30.2]
[1744562854502,48.30757147,129.51,129.44,30.2]
[1744562855309,7.7276,129.46,129.44,30.2]
[1744562855607,16.03447147,129.49,129.44,30.2]
[1744562855806,0.055258,129.46,129.44,30.25281115]
[1744562856508,7.7279,129.45,129.44,30.25281115]
[1744562857709,0.055258,129.46,129.44,30.25281115]
[1744562858208,0.055258,129.46,129.44,37.98101115]
[1744562859817,0.055258,129.46,129.45,7.7279]
[1744562862115,0.055258,129.46,129.44,30.25281115]
[1744562862716,7.7279,129.45,129.44,0.05281115]
[1744562866713,7.782658,129.46,129.44,0.05281115]
[1744562867207,0.055258,129.46,129.44,0.05281115]
[1744562867410,0.055258,129.46,129.44,30.27281115]
[1744562867917,0.055258,129.46,129.44,38.00091115]
[1744562868216,7.782558,129.46,129.44,30.27281115]
[1744562870709,7.782558,129.46,129.44,38.00121115]
[1744562871420,7.782558,129.46,129.44,30.27281115]
[1744562873120,7.782558,129.46,129.44,38.00121115]
[1744562873525,7.782558,129.46,129.44,30.27281115]
[1744562874023,0.055258,129.46,129.44,30.27281115]
[1744562874721,0.055258,129.46,129.45,7.7279]
[1744562878324,2.0846,129.51,129.49,7.7255]
[1744562879126,9.8092,129.51,129.49,7.7255]
[1744562879526,7.77581918,129.51,129.49,7.78059274]
[1744562880028,0.05121918,129.51,129.49,7.78059274]
[1744562880428,7.77551918,129.51,129.49,7.78059274]
[1744562880725,7.77551918,129.51,129.49,0.05509274]
[1744562880930,0.05121918,129.51,129.49,0.05509274]
[1744562881128,7.7249,129.5,129.49,0.05509274]
[1744562881931,0.05121918,129.51,129.49,0.05509274]
[1744562882323,7.7249,129.5,129.49,0.05509274]
[1744562882626,0.05121918,129.51,129.49,0.05509274]
[1744562883027,7.77581918,129.51,129.49,0.05509274]
[1744562883429,7.7249,129.5,129.49,0.05509274]
[1744562885624,46.26569065,129.51,129.44,30.18]
[1744562885828,18.04257147,129.49,129.44,30.18]
[1744562886125,16.03447147,129.47,129.4,641.8]
[1744562886328,16.03447147,129.47,129.41,7.73]
[1744562886629,7.7288,129.44,129.41,7.73]
[1744562886829,7.7288,129.44,129.43,0.05200261]
[1744562888632,0.05496825,129.45,129.4,641.8]
[1744562889034,7.7288,129.44,129.4,641.8]
[1744562889732,7.7288,129.44,129.41,7.78487981]
[1744562891334,0.05496825,129.45,129.41,0.05487981]
[1744562891938,7.78316825,129.45,129.41,0.05487981]
[1744562892438,7.7288,129.44,129.41,7.78487981]
[1744562892738,7.7288,129.44,129.41,0.05487981]
[1744562893138,7.7288,129.44,129.41,7.78487981]
[1744562894242,7.7288,129.44,129.42,7.7297]
[1744562895442,7.78316825,129.45,129.42,7.7297]
[1744562896033,0.05496825,129.45,129.41,0.05487981]
[1744562896439,0.05496825,129.45,129.42,16.03447147]
[1744562896639,0.05496825,129.45,129.44,7.7285]
[1744562900135,0.05496825,129.45,129.43,37.9289]
[1744562900339,0.05496825,129.45,129.43,30.2]
[1744562901245,7.7285,129.44,129.43,30.2]
[1744562903142,7.78316825,129.45,129.43,30.2]
[1744562903349,0.05496825,129.45,129.43,30.2]
[1744562903946,0.05496825,129.45,129.43,37.9287]
[1744562904545,0.05496825,129.45,129.44,7.7285]
[1744562904848,0.05496825,129.45,129.43,30.2]
[1744562905447,7.7285,129.44,129.43,30.2]
[1744562906748,7.7297,129.42,129.41,0.05487981]
[1744562910857,7.72,129.42,129.33,30.18]
[1744562911059,18.14187147,129.41,129.33,30.18]
[1744562911355,48.32187147,129.41,129.33,30.18]
[1744562911555,48.32187147,129.41,129.35,7.7338]
[1744562911856,0.05025967,129.39,129.35,7.7338]
[1744562912061,0.05025967,129.39,129.37,0.0575541]
[1744562912654,7.7326,129.38,129.37,0.0575541]
[1744562918567,7.78195967,129.39,129.37,0.0575541]
[1744562919567,7.7321,129.38,129.37,0.0575541]
[1744562920567,7.7321,129.38,129.34,7.7341]
[1744562920568,7.7336,129.36,129.33,30.18]
[1744562920764,7.7336,129.36,129.33,37.915]
[1744562921769,7.79035856,129.36,129.33,37.9735245]
[1744562922165,7.7344,129.34,129.33,30.2385245]
[1744562922670,7.7344,129.34,129.33,0.0585245]
[1744562927070,7.7341,129.35,129.33,0.0585245]
[1744562930473,7.79025856,129.36,129.33,0.0585245]
[1744562930776,7.79025856,129.36,129.33,10.34182099]
[1744562931078,7.79025856,129.36,129.33,18.07652099]
[1744562931474,7.7339,129.35,129.33,10.34182099]
[1744562931673,7.7339,129.35,129.33,0.0585245]
[1744562933374,7.7344,129.34,129.33,0.0585245]
[1744562933581,10.28329649,129.34,129.3,30.18]
[1744562934080,10.28329649,129.34,129.29,10.28329649]
[1744562934081,7.7367,129.31,129.28,7.7378]
[1744562934682,7.78846505,129.31,129.28,7.79149379]
[1744562936284,0.05176505,129.31,129.28,0.05369379]
[1744562936881,0.05176505,129.31,129.28,7.79169379]
[1744562937380,7.78836505,129.31,129.28,7.79169379]
[1744562937882,7.737,129.3,129.28,7.79169379]
[1744562938381,7.737,129.3,129.28,0.05369379]
[1744562939182,7.78826505,129.31,129.28,7.79169379]
[1744562940484,7.78826505,129.31,129.29,7.7374]
[1744562941082,0.05176505,129.31,129.29,7.7374]
[1744562941585,10.28329649,129.3,129.21,30.18]
[1744562941779,10.28329649,129.28,129.22,10.28329649]
[1744562942180,10.28329649,129.32,129.26,10.28329649]
[1744562942584,10.28329649,129.3,129.25,30.18]
[1744562942785,10.33736065,129.3,129.28,0.04933831]
[1744562943181,7.7374,129.29,129.28,0.04933831]
[1744562943783,9.898,129.29,129.28,0.04933831]
[1744562944181,2.1606,129.29,129.22,37.9214]
[1744562944388,10.28329649,129.28,129.22,48.20469649]
[1744562944787,10.28329649,129.28,129.23,7.7409]
[1744562945286,7.739,129.27,129.23,7.7409]
[1744562945485,7.7951255,129.27,129.24,0.04153086]
[1744562946581,0.0561255,129.27,129.24,0.04153086]
[1744562948188,0.0561255,129.27,129.24,7.78193086]
[1744562948686,0.0561255,129.27,129.25,7.7398]
[1744562949988,0.0561255,129.27,129.24,7.78173086]
[1744562950492,0.0561255,129.27,129.25,7.7398]
[1744562951093,0.0561255,129.27,129.26,7.7392]
[1744562951389,0.0561255,129.27,129.24,0.04153086]
[1744562951693,0.0561255,129.27,129.25,7.7395]
[1744562951995,0.0561255,129.27,129.24,0.04153086]
[1744562952185,0.0561255,129.27,129.25,10.28329649]
[1744562952592,0.0561255,129.27,129.26,7.7392]
[1744562954994,0.0561255,129.27,129.25,37.9198]
[1744562955294,10.28329649,129.26,129.24,0.04153086]
[1744562955697,0.0561255,129.27,129.24,0.04153086]
[1744562956194,0.0561255,129.27,129.25,7.7395]
[1744562956396,0.0561255,129.27,129.24,0.04153086]
[1744562956594,0.0561255,129.27,129.24,7.78163086]
[1744562957293,0.0561255,129.27,129.24,0.04153086]
[1744562957994,0.0561255,129.27,129.25,7.7395]
[1744562958596,0.0561255,129.27,129.24,7.78183086]
[1744562960687,10.28329649,129.26,129.24,0.04153086]
[1744562960892,10.28329649,129.26,129.19,30.18]
[1744562961092,10.28329649,129.24,129.19,30.18]
[1744562961697,10.28329649,129.24,129.22,7.7416]
[1744562961996,10.34145422,129.24,129.22,7.7416]
[1744562962199,10.34145422,129.24,129.19,30.18]
[1744562962497,10.34145422,129.24,129.21,7.7419]
[1744562963299,0.05815773,129.24,129.2,10.28329649]
[1744562964093,0.05815773,129.24,129.22,7.7413]
[1744562964502,0.05815773,129.24,129.2,10.28329649]
[1744562964798,0.05815773,129.24,129.23,7.741]
[1744562970904,1.9714,129.32,129.22,40.48329649]
[1744562970905,12.25469649,129.32,129.22,40.48329649]
[1744562971110,12.25469649,129.32,129.27,10.28329649]
[1744562971507,12.25469649,129.32,129.28,7.7377]
[1744562972005,0.04972917,129.31,129.3,7.7368]
[1744562972708,0.01266225,129.31,129.3,7.7368]
[1744562982217,30.18,129.37,129.29,46.29770203]
[1744562982415,30.18,129.37,129.29,46.24796666]
[1744562982721,7.7334,129.36,129.33,7.7347]
[1744562982920,30.18,129.37,129.29,46.24796666]
[1744562983314,37.913,129.37,129.33,7.7347]
[1744562983520,0.05868974,129.34,129.33,7.7347]
[1744562984822,0.05868974,129.34,129.32,7.78924173]
[1744562985117,0.05868974,129.34,129.32,0.05384173]
[1744562986221,0.05868974,129.34,129.33,7.735]
[1744562988021,0.05868974,129.34,129.32,7.78904173]
[1744562989422,0.05868974,129.34,129.33,7.735]
[1744562990923,0.05868974,129.34,129.32,37.94924173]
[1744562991617,0.05868974,129.34,129.32,0.05384173]
[1744562993325,7.79348974,129.34,129.32,0.05384173]
[1744562995019,0.05868974,129.34,129.32,7.78904173]
[1744562996025,0.05868974,129.34,129.33,7.735]
[1744562996726,0.05868974,129.34,129.32,7.78924173]
[1744562997920,7.79348974,129.34,129.32,0.05384173]
[1744562998518,7.79348974,129.34,129.32,7.78944173]
[1744563000228,7.79348974,129.34,129.32,0.05384173]
[1744563007031,0.05868974,129.34,129.32,7.78924173]
[1744563007235,0.05868974,129.34,129.32,40.4792342]
[1744563007534,0.05868974,129.34,129.33,7.735]
[1744563013934,0.05868974,129.34,129.32,48.2147342]
[1744563014137,0.05868974,129.34,129.32,30.19384173]
[1744563014440,7.79348974,129.34,129.32,30.19384173]
[1744563015339,7.79348974,129.34,129.32,37.92944173]
[1744563015537,0.05868974,129.34,129.32,40.4792342]
[1744563016034,0.05868974,129.34,129.33,7.735]
[1744563020439,0.05868974,129.34,129.32,48.2146342]
[1744563020638,0.05868974,129.34,129.32,30.19384173]
[1744563021042,7.79348974,129.34,129.32,30.19384173]
[1744563021445,0.05868974,129.34,129.32,30.19384173]
[1744563021741,0.05868974,129.34,129.32,37.92944173]
[1744563022646,0.05868974,129.34,129.32,7.78944173]
[1744563023145,7.79318974,129.34,129.32,7.78944173]
[1744563024546,7.79318974,129.34,129.32,0.05384173]
[1744563035750,10.28539247,129.33,129.29,10.28539247]
[1744563035955,10.28539247,129.31,129.27,40.42539247]
[1744563036254,10.28539247,129.31,129.25,10.28539247]
[1744563036553,40.42539247,129.31,129.25,10.28539247]
[1744563036953,7.7384,129.28,129.27,0.05272225]
[1744563038651,7.79070052,129.29,129.27,0.05272225]
[1744563038949,0.05300052,129.29,129.28,18.02339247]
[1744563040356,0.05300052,129.29,129.28,10.28539247]
[1744563043351,0.05300052,129.29,129.27,18.07651472]
[1744563044554,0.05300052,129.29,129.28,7.738]
[1744563047858,14.50799247,129.34,129.27,40.47811472]
[1744563048055,4.2226,129.34,129.3,10.28539247]
[1744563048755,9.8391,129.34,129.31,7.7362]
[1744563048963,10.28539247,129.36,129.32,10.28539247]
[1744563049259,0.04887727,129.34,129.32,18.02079247]
[1744563050164,0.04887727,129.34,129.33,7.735]
[1744563051062,16.35319247,129.41,129.33,30.14]
[1744563051264,16.35319247,129.41,129.35,10.28539247]
[1744563051466,7.7321,129.38,129.35,18.01869247]
[1744563051659,16.35319247,129.41,129.35,10.28539247]
[1744563052067,7.7319,129.39,129.36,7.7332]
[1744563052366,7.7859864,129.39,129.37,0.04990501]
[1744563052662,7.7859864,129.39,129.37,7.78250501]
[1744563052964,0.0540864,129.39,129.37,9.04208214]
[1744563053766,0.0540864,129.39,129.38,7.7321]
[1744563057068,7.7289,129.44,129.4,7.7304]
[1744563057276,30.12,129.46,129.41,8.99217713]
[1744563057471,15.22227713,129.47,129.41,8.99217713]
[1744563057776,10.96957713,129.47,129.43,8.99217713]
[1744563058174,7.7275,129.46,129.43,16.72087713]
[1744563058367,7.78022842,129.46,129.44,0.05210664]
[1744563060773,7.7279,129.45,129.44,0.05210664]
[1744563060975,8.99217713,129.45,129.4,39.11217713]
[1744563061175,10.96647713,129.45,129.4,39.11217713]
[1744563061376,10.96647713,129.45,129.4,30.12]
[1744563061679,8.99217713,129.43,129.4,30.12]
[1744563061874,8.99217713,129.43,129.37,8.99217713]
[1744563062074,8.99217713,129.41,129.37,8.99217713]
[1744563062270,9.04476934,129.41,129.39,0.05629405]
[1744563063179,7.7314,129.4,129.39,0.05629405]
[1744563065674,7.7314,129.4,129.33,14.04938337]
[1744563065675,7.7333,129.36,129.32,30.1]
[1744563065879,7.7333,129.36,129.33,7.7345]
[1744563066078,2.1584,129.39,129.33,14.04938337]
[1744563066279,9.89,129.39,129.33,14.04938337]
[1744563066883,0.05921817,129.37,129.35,7.78812428]
[1744563067079,0.05921817,129.37,129.35,37.88812428]
[1744563068675,0.05921817,129.37,129.36,7.7333]
[1744563083189,0.05921817,129.37,129.36,16.72410868]
[1744563085588,7.7298,129.42,129.39,7.7312]
[1744563086786,7.77846034,129.42,129.39,7.78606584]
[1744563087189,7.7303,129.41,129.39,0.05486584]
[1744563088989,7.77866034,129.42,129.39,7.78626584]
[1744563089889,7.7303,129.41,129.39,0.05486584]
[1744563090089,0.04866034,129.42,129.39,0.05486584]
[1744563090690,7.7303,129.41,129.39,0.05486584]
[1744563091789,8.99080868,129.41,129.36,8.99080868]
[1744563091991,8.99080868,129.39,129.32,39.09080868]
[1744563092191,8.99080868,129.37,129.32,30.1]
[1744563092391,7.7353,129.33,129.29,48.13146748]
[1744563093086,0.04995917,129.32,129.3,7.79530576]
[1744563099696,0.04995917,129.32,129.3,0.05890576]
[1744563100797,0.04995917,129.32,129.3,7.79570576]
[1744563103997,0.04995917,129.32,129.31,7.7362]
[1744563108399,0.04995917,129.32,129.3,7.79560576]
[1744563108795,0.04995917,129.32,129.3,0.05890576]
[1744563109602,0.04995917,129.32,129.31,21.79947968]
[1744563109800,2.0862,129.36,129.31,14.06327968]
[1744563110000,2.0862,129.36,129.32,30.08]
[1744563110302,9.8195,129.36,129.33,7.7348]
[1744563110901,9.87811093,129.36,129.33,7.79398584]
[1744563111504,2.14481093,129.36,129.33,0.05918584]
[1744563113301,7.7344,129.34,129.33,0.05918584]
[1744563121209,18.87792343,129.36,129.33,7.79418584]
[1744563121409,7.79241093,129.36,129.33,7.79418584]
[1744563121610,0.05861093,129.36,129.33,7.79418584]
[1744563121911,7.79211093,129.36,129.34,7.7344]
[1744563122210,0.05861093,129.36,129.34,7.7344]
[1744563122810,0.05861093,129.36,129.35,7.7339]
[1744563123109,0.05861093,129.36,129.35,37.8139]
[1744563123607,8.9993125,129.45,129.35,37.82]
[1744563123805,11.7744,129.44,129.39,8.9993125]
[1744563124106,11.7744,129.44,129.41,7.7302]
[1744563124706,11.82898924,129.44,129.41,7.78934877]
[1744563125207,4.10008924,129.44,129.41,0.05914877]
[1744563125811,30.04,129.43,129.36,30.04]
[1744563126011,44.08105194,129.43,129.36,30.04]
[1744563126511,7.7313,129.4,129.37,7.7326]
[1744563127012,7.78656442,129.4,129.37,7.78360089]
[1744563127507,0.05526442,129.4,129.37,0.05100089]
[1744563127712,0.05526442,129.4,129.37,14.09205283]
[1744563128211,0.05526442,129.4,129.39,7.7315]
[1744563128409,0.05526442,129.4,129.39,37.7715]
[1744563130309,0.05526442,129.4,129.39,30.04]
[1744563130914,7.78616442,129.4,129.39,30.04]
[1744563132513,0.05526442,129.4,129.39,30.04]
[1744563132715,0.05526442,129.4,129.39,37.7715]
[1744563134114,0.05526442,129.4,129.37,0.05100089]
[1744563134314,14.04105194,129.39,129.33,30.04]
[1744563134616,7.7344,129.35,129.33,30.04]
[1744563134815,14.04105194,129.37,129.3,30.04]
[1744563135010,2.0384,129.38,129.3,30.04]
[1744563135216,2.0072,129.39,129.31,14.04105194]
[1744563135411,2.0072,129.39,129.31,18.13835194]
[1744563135613,0.05936186,129.36,129.34,0.04878379]
[1744563135814,0.05936186,129.36,129.34,30.08878379]
[1744563137214,0.05936186,129.36,129.35,7.7336]
[1744563138416,32.0784,129.43,129.37,7.7324]
[1744563138417,7.7309,129.4,129.37,7.7324]
[1744563138612,7.7309,129.4,129.37,37.7724]
[1744563139117,7.7315,129.39,129.37,30.04]
[1744563139412,32.0784,129.43,129.37,30.04]
[1744563139620,0.05821545,129.39,129.37,30.09121126]
[1744563139913,0.05821545,129.39,129.37,37.82381126]
[1744563141018,7.78981545,129.39,129.37,30.09121126]
[1744563141318,0.05821545,129.39,129.37,30.09121126]
[1744563141921,7.78991545,129.39,129.37,30.09121126]
[1744563143722,7.78991545,129.39,129.37,37.82381126]
[1744563143919,0.05821545,129.39,129.37,37.82381126]
[1744563144119,0.05821545,129.39,129.37,30.09121126]
[1744563144418,0.05821545,129.39,129.38,7.7321]
[1744563147423,0.05821545,129.39,129.37,37.82351126]
[1744563147625,7.79001545,129.39,129.37,30.09121126]
[1744563148029,0.05821545,129.39,129.37,30.09121126]
[1744563148229,7.7321,129.38,129.37,0.05121126]
[1744563148529,0.05821545,129.39,129.37,0.05121126]
[1744563148726,0.05821545,129.39,129.38,7.7321]
[1744563150431,0.05821545,129.39,129.37,30.09121126]
[1744563150829,0.05821545,129.39,129.37,0.05121126]
[1744563151140,7.7321,129.38,129.37,0.05121126]
[1744563151537,0.05821545,129.39,129.37,0.05121126]
[1744563152040,7.78991545,129.39,129.37,0.05121126]
[1744563155840,7.7321,129.38,129.37,0.05121126]
[1744563159240,0.05821545,129.39,129.37,0.05121126]
[1744563159441,0.05821545,129.39,129.37,7.78371126]
[1744563159641,0.05821545,129.39,129.37,0.05121126]
[1744563160144,7.78921545,129.39,129.37,0.05121126]
[1744563161245,7.7313,129.38,129.37,0.05121126]
[1744563165547,7.7331,129.35,129.31,44.06105194]
[1744563165747,2.0589,129.38,129.33,7.7342]
[1744563166251,7.7331,129.35,129.33,7.7342]
[1744563166751,7.79233164,129.35,129.33,7.78730439]
[1744563169953,0.05923164,129.35,129.34,7.7337]
[1744563170856,0.05923164,129.35,129.34,37.7537]
[1744563172955,0.05923164,129.35,129.34,7.7337]
[1744563173153,0.05923164,129.35,129.34,37.7537]
[1744563175161,0.05923164,129.35,129.34,46.74628442]
[1744563177563,0.00717917,129.35,129.34,46.74628442]
[1744563177959,7.7298,129.41,129.39,7.7306]
[1744563178266,36.1209,129.43,129.39,7.7306]
[1744563178468,36.1209,129.43,129.37,39.01258442]
[1744563178469,36.1209,129.43,129.4,7.73]
[1744563179064,36.17921077,129.43,129.4,7.78783752]
[1744563179963,7.7293,129.42,129.4,0.05783752]
[1744563181159,7.7293,129.42,129.4,7.78783752]
[1744563181564,7.7295,129.41,129.4,0.05783752]
[1744563182162,7.7308,129.39,129.37,37.7517]
[1744563182367,8.99258442,129.4,129.37,30.02]
[1744563182663,8.99258442,129.42,129.37,30.02]
[1744563182864,8.99258442,129.42,129.38,7.7309]
[1744563183467,7.78565191,129.41,129.39,0.05086316]
[1744563183967,7.7301,129.4,129.39,0.05086316]
[1744563184171,0.05575191,129.41,129.39,0.05086316]
[1744563184870,0.05575191,129.41,129.39,7.78126316]
[1744563186071,7.78525191,129.41,129.39,7.78126316]
[1744563186268,7.78525191,129.41,129.39,0.05086316]